Cogmind - Beta 15 @@@ ROGUE MODE // 2025.06.15 @ 16:12:52 // AFD2019/Pay2Buy Player: Minty Result: Destroyed by as-99224 with Assembled Heavy Rifle Performance ------------- Evolutions (0) 0 Regions Visited (2) 400 Robots Destroyed (9) 45 Value Destroyed (148) 148 Prototype IDs (3) 60 Alien Tech Used (0) 0 Bonus (0) 0 TOTAL SCORE: 653 Bonus ------- None Cogmind --------- Core Integrity 0/250 Matter 300/300 Energy 280/280 System Corruption 0% Temperature Cool (0) Movement Hovering (50) Location -10/Mines Parts ------- > --- POWER (1) -------- Heavy Ion Engine > --- PROPULSION (2) --- Aerolev Unit > --- UTILITY (2) ------ (None) > --- WEAPON (2) ------- (None) > --- INVENTORY (10) --- Improved Aluminum Leg Cooling System High-capacity Matter Pod (11) Medium Armor Plating Improved Medium Laser Improved Medium Laser Peak State ------------ > --- POWER ------------ Heavy Ion Engine > --- PROPULSION ------- Improved Aluminum Leg Improved Aluminum Leg > --- UTILITY ---------- Cooling System Improved Targeting Computer > --- WEAPON ----------- Improved Medium Laser Improved Medium Laser > --- INVENTORY -------- (None) [Rating: 17] Favorites ----------- Power Heavy Ion Engine Engine Heavy Ion Engine Propulsion Improved Aluminum Leg Leg Improved Aluminum Leg Hover Unit Aerolev Unit Utility Improved Targeting Computer Device Cooling System Processor Improved Targeting Computer Weapon Improved Medium Laser Energy Gun Improved Medium Laser Build | -11 -10 -10 ------- Run | Yrd Mat Min Slots Evolved . | . . . Power . | . . . Propulsion . | . . . Utility . | . . . Weapon . | . . . Parts Attached 1 | . . 1 Power . | . . . Engine . | . . . Core . | . . . Reactor . | . . . Propulsion 1 | . . 1 Treads . | . . . Leg . | . . . Wheel . | . . . Hover 1 | . . 1 Flight . | . . . Utility . | . . . Device . | . . . Storage . | . . . Processor . | . . . Hackware . | . . . Protection . | . . . Artifact . | . . . Weapon . | . . . Energy Gun . | . . . Energy Cannon . | . . . Ballistic Gun . | . . . Ballistic Cannon . | . . . Launcher . | . . . Special Weapon . | . . . Impact Weapon . | . . . Slashing Weapon . | . . . Piercing Weapon . | . . . Special Melee Weapon . | . . . Unidentified Prototypes . | . . . Parts Lost 2 | . . 2 Power . | . . . Propulsion 1 | . . 1 Utility 1 | . . 1 Weapon . | . . . Highest Loss Streak 1 | . . 1 To Critical Strikes . | . . . Average Backups 1 | . . 1 Power . | . . . Propulsion . | . . . Utility . | . . . Weapon . | . . . Tool/Special . | . . . Unused Backups 2 | . . 2 Power . | . . . Propulsion . | . . . Utility 2 | . . 2 Weapon . | . . . Tool/Special . | . . . Average Slot Usage (%) 91 | . 94 89 Engine 13 | . 13 14 Leg 24 | . 26 22 Hover 1 | . . 2 Device 12 | . 13 11 Processor 13 | . 13 13 Energy Gun 24 | . 26 23 Peak Build Rating 17 | . 17 17 Average Rating 16 | . 16 15 On Entrance 5 | . . 17 Naked Turns 2 | . 2 . Heaviest Build 16 | . 16 16 Greatest Support 26 | 3 26 26 Greatest Overweight (x) 1 | . . 1 Average Overweight (x) . | . . . Largest Inventory Capacity 10 | . 10 10 Average Capacity 10 | . 10 10 Most Carried 6 | . . 6 Average Carried . | . . 1 Final Capacity 10 | 10 10 10 Final Carried 6 | . . 6 Class Distribution -------------------- 100% | Mutant Dominant Class ---------------- Mutant | -10/Materials Mutant | -10/Mines Resources | -11 -10 -10 ----------- Run | Yrd Mat Min Matter Collected 189 | . 76 113 Remotely . | . . . Salvage Created 227 | . 76 151 Parts . | . . . Haulers Intercepted . | . . . Recyclers Shooed . | . . . Parts Field Recycled . | . . . Retrieved Matter . | . . . Parts Self-Destructed . | . . . Prevented . | . . . Kills | -11 -10 -10 ------- Run | Yrd Mat Min Combat Hostiles Destroyed 6 | . . 6 Guns 6 | . . 6 Classes Destroyed 6 | . 3 3 Worker 1 | . 1 . Builder 2 | . 2 . Watcher 1 | . 1 . Swarmer 3 | . . 3 Grunt 2 | . . 2 Assembled 1 | . . 1 Best Kill Streak 5 | . 3 5 Combat Bots Only 5 | . . 5 Max Kills in Single Turn 2 | . 1 2 Gunslinging 1 | . . 1 Exploded . | . . . Melee . | . . . Uniques/NPCs Destroyed . | . . . Combat | -11 -10 -10 -------- Run | Yrd Mat Min Hostile Shots Fired 43 | . . 43 Missed 10 | . . 10 Hits 33 | . . 33 Melee 2 | . . 2 Projectile 31 | . . 31 AOE 6 | . . 6 Critical Strikes 1 | . . 1 Damage Taken 603 | . . 603 Core 255 | . . 255 Absorbed by Shields . | . . . Core Remaining (%) 100 | 100 . . Volleys Fired 20 | . 7 13 Largest 2 | . 2 2 Hottest 112 | . 112 112 Shots Fired 40 | . 14 26 Gun 40 | . 14 26 Cannon . | . . . Launcher . | . . . Special . | . . . Kinetic . | . . . Thermal 40 | . 14 26 Explosive . | . . . Electromagnetic . | . . . Robot Hit Streak 6 | . 4 6 Robot Miss Streak 2 | . 2 2 Penetration Max . | . . . Secondary Targets 1 | . . 1 Max Gunslinging Chain 1 | . . 1 Shots Hit Robots 24 | . 8 16 Core Hits 14 | . 5 9 Critical Kills . | . . . Critical Parts Destroyed . | . . . Critical Strikes 2 | . 2 . Burn 2 | . 2 . Melee Attacks . | . . . Impact . | . . . Slashing . | . . . Piercing . | . . . Sneak Attacks . | . . . Combat Hostiles . | . . . Follow-up Attacks . | . . . Damage Inflicted 493 | . 154 339 Guns 467 | . 138 329 Cannons . | . . . Explosions . | . . . Melee . | . . . Ramming 26 | . 16 10 Kinetic . | . . . Thermal 467 | . 138 329 Explosive . | . . . Electromagnetic . | . . . Impact . | . . . Slashing . | . . . Piercing . | . . . Highest Corruption . | . . . Average Corruption . | . . . Corruption Purged . | . . . Corruption Blocked . | . . . Overload Shots . | . . . Overflow Damage . | . . . Projectiles . | . . . Explosions . | . . . Melee . | . . . Knockbacks . | . . . Impact . | . . . Kinetic . | . . . Secondary . | . . . Self-Inflicted Damage . | . . . Shots . | . . . Rammed . | . . . Targets Rammed 7 | . 5 2 Kicked 7 | . 5 2 Crushed . | . . . Highest Temperature 8 | . . 8 Average Temperature 4 | . . 4 Received Heat Transfer 33 | . . 33 Siege Activations . | . . . Martial Activations . | . . . Shielding Activations . | . . . Robots Disrupted . | . . . Combat Hostiles . | . . . Robots Corrupted . | . . . Combat Hostiles . | . . . Parts Fried . | . . . Impact Corruptions . | . . . Robots Melted . | . . . Combat Hostiles . | . . . Parts Melted . | . . . Heat Transferred 1147 | . 444 703 Parts Sabotaged . | . . . Parts Stolen . | . . . Parts Stripped . | . . . Power Chain Reactions . | . . . Alert | -11 -10 -10 ------- Run | Yrd Mat Min Maximum Alert Level . | . . . Low Security (%) 100 | . 100 100 Level 1 . | . . . Level 2 . | . . . Level 3 . | . . . Level 4 . | . . . Level 5 . | . . . High Security . | . . . Max Security . | . . . Peak Influence 110 | . 18 110 Initial . | . . . Average 36 | . 7 53 Influence Increases 200 | . 65 135 Destroy 0b10 Robot/C 100 | . . 100 Destroy 0b10 Robot/NC 20 | . 20 . Destroy Leader 22 | . 2 20 Successful Hack 42 | . 42 . Disable Machine 15 | . . 15 Destroy Structure 1 | . 1 . Influence Decreases 200 | . 65 135 Time Decay 180 | . 65 115 Lost Part 20 | . . 20 Squads Dispatched 1 | . 1 . Investigation . | . . . Extermination . | . . . Reinforcement 1 | . 1 . Assault . | . . . Garrison . | . . . Intercept . | . . . Searches Triggered . | . . . Construction Impeded . | . . . Haulers Reinforced . | . . . Active Scanning Responses . | . . . Cargo Convoy Interrupts . | . . . Stealth | -11 -10 -10 --------- Run | Yrd Mat Min Distress Signals . | . . . Communications Jammed . | . . . Distress Signals . | . . . Times Spotted 34 | . 5 29 Peak Tracking Total 20 | . 1 20 Tactical Retreats 3 | . . 3 Traps | -11 -10 -10 ------- Run | Yrd Mat Min Traps Triggered . | . . . Indirectly . | . . . Trap Hack Attempts . | . . . Triggered . | . . . Disarmed . | . . . Reprogrammed . | . . . Reused . | . . . Traps Extracted . | . . . Installed . | . . . Triggered . | . . . Machines | -11 -10 -10 ---------- Run | Yrd Mat Min Machines Disabled 2 | . 1 1 Max in Single Turn 1 | . 1 1 Machines Repaired . | . . . Machines Dismantled . | . . . Machines Sabotaged . | . . . Overloaded Fab Kills . | . . . Hacking | -11 -10 -10 --------- Run | Yrd Mat Min Machines Accessed 4 | . 4 . Terminals 4 | . 4 . Fabricators . | . . . Repair Stations . | . . . Recycling Units . | . . . Scanalyzers . | . . . Garrison Access . | . . . Total Hacks 23 | . 23 . Successful 14 | . 14 . Failed 9 | . 9 . Catastrophic 1 | . 1 . Database Lockouts . | . . . Manual 19 | . 19 . Terminals 23 | . 23 . Fabricators . | . . . Repair Stations . | . . . Recycling Units . | . . . Scanalyzers . | . . . Garrison Access . | . . . Terminal Hacks 8 | . 8 . Robot Analysis 2 | . 2 . Terminal Index 1 | . 1 . Locate Traps 2 | . 2 . Patrol Status 1 | . 1 . Zone Layout 2 | . 2 . Fabricator Hacks . | . . . Repair Station Hacks . | . . . Recycling Unit Hacks . | . . . Scanalyzer . | . . . Garrison Access Hacks . | . . . Unauthorized Hacks 6 | . 6 . Terminals 6 | . 6 . Botnet 2 | . 2 . Skim 4 | . 4 . Fabricators . | . . . Repair Stations . | . . . Recycling Units . | . . . Scanalyzers . | . . . Garrison Access . | . . . Data Cores Recovered . | . . . Used . | . . . Hacking Detections 4 | . 4 . Full Trace Events . | . . . Feedback Events . | . . . Feedback Blocked . | . . . Robot Schematics Acquired . | . . . Robots Built . | . . . Authchips . | . . . Time . | . . . Total Robot Build Rating . | . . . Part Schematics Acquired . | . . . Parts Built . | . . . Authchips . | . . . Time . | . . . Total Part Build Rating . | . . . Parts Repaired . | . . . Time . | . . . Parts Recycled . | . . . Recycled Matter . | . . . Retrieved Matter . | . . . Retrieved Components . | . . . Parts Scanalyzed . | . . . Part Schematics Acquired . | . . . Parts Damaged . | . . . Bothacking | -11 -10 -10 ------------ Run | Yrd Mat Min Used RIF Installer . | . . . Robots Hacked . | . . . Non-combat . | . . . Combat . | . . . Robot Hacks Applied . | . . . Relay Couplers Released . | . . . Fabnet Peak Effective % . | . . . Robots Rewired . | . . . Allies Hacked . | . . . Hacks Repelled . | . . . Allies | -11 -10 -10 -------- Run | Yrd Mat Min Total Allies . | . . . Largest Group . | . . . Highest-Rated Group . | . . . Highest-Rated Ally . | . . . Total Orders . | . . . Ally Attacks . | . . . Total Damage . | . . . Kills . | . . . Allies Corrupted . | . . . Allies Melted . | . . . Intel | -11 -10 -10 ------- Run | Yrd Mat Min Active Infowar (turns) . | . . . Robot Analysis Total 2 | . 2 . Derelict Logs Recovered . | . . . Drone Launches . | . . . Drone Recoveries . | . . . Exploration | -11 -10 -10 ------------- Run | Yrd Mat Min Turns Passed 464 | . 172 292 Spaces Moved 382 | 1 123 258 Core 3 | 1 2 . Treads . | . . . Legs 286 | . 121 165 Wheels . | . . . Hover 93 | . . 93 Flight . | . . . Fastest Speed 50 | 50 50 50 Average Speed 102 | 50 118 95 Slowest Speed 190 | 50 120 190 Overloaded Moves . | . . . Propulsion Burnouts . | . . . Robots Hopped . | . . . Potential Cave-ins . | . . . Cave-ins Triggered . | . . . Exploration Rate (%) 38 | 2 37 75 Regions Visited 2 Branch Regions 1 Pre-discovered Areas . | . . . Known Exits Taken . | . . . Unknown Exits Taken 2 | 1 1 . Scrap Searched . | . . . Spaces Dug . | . . . Terrain Destroyed . | . . . Melee . | . . . Projectile . | . . . AOE . | . . . Terrain Rammed . | . . . Walls Destroyed . | . . . Machines Disabled . | . . . Actions | -11 -10 -10 --------- Run | Yrd Mat Min Total 413 | . 134 279 Wait 1 | . . 1 Move 380 | . 122 258 Hop . | . . . Pick Up . | . . . Fast Attach . | . . . Attach 1 | . . 1 Detach 4 | . . 4 Swap . | . . . Drop . | . . . Fire 20 | . 7 13 Melee . | . . . Ram . | . . . Kick 7 | . 5 2 Crush . | . . . Escape Stasis . | . . . Rewire . | . . . Trap . | . . . Miscellaneous . | . . . Route ------- -11/Scrapyard -10/Materials (discovered 3 exits: [*Mat] / [*Min x2]) -10/Mines History --------- Turn | Location | Event 1 | -11/Scrapyard | Discovered new exit (range 0) 1 | -11/Scrapyard | Entered Materials 37 | -10/Materials | Discovered new exit (range 11) 141 | -10/Materials | Discovered new exit (range 16) 166 | -10/Materials | Discovered new exit (range 16) 173 | -10/Materials | Entered Mines 305 | -10/Mines | Build established: Mutant 367 | -10/Mines | Assembled infested the area 427 | -10/Mines | Core integrity fell below 50% 445 | -10/Mines | Core integrity fell below 20% 465 | -10/Mines | Destroyed by as-99224 with Assembled Heavy Rifle Last Messages --------------- 00401_ as-63056 destroyed. 00402_ as-68002 destroyed. 00403_ as-24965 destroyed. 00403_ as-53270 destroyed. 00403_ as-76148 destroyed. 00406_ Imp. Aluminum Leg destroyed. 00406_ Destroyed Lgt. Deuterium Engine. 00407_ The unstable cave ceiling collapses. 00407_ U-05 Engineer destroyed. 00408_ The unstable cave ceiling collapses. 00409_ D-53 Grenadier destroyed. 00409_ as-00575 destroyed. 00411_ The unstable cave ceiling collapses. [DISCOUNT: For the next 122 turns enjoy 50% off any Engine!] 00451_ The unstable cave ceiling collapses. 00451_ Acquired 5 matter. 00451_ Imp. Targeting Computer destroyed. 00453_ The unstable cave ceiling collapses. 00455_ Acquired 1 matter. 00464_ U-05 Engineer destroyed. Map ----- +----------------------------------------------------+ | # #????????????# #???????? ??????????# | | ?? ##??????##### #??????? """?????????# | | ???# ##?????# #??????? """?#??????# | | ????# ##????# ### #????### """ ##????# | | ?????# ##???# #?# #??### ##???# | | ??????# ##??# #?# #### #???## | | ?????## #### #?# #????## ## | | ?????# """ #?# ### ###????????????# #?? | | ????## """ #####?# #?## ##??????????????# ??? | | ???## """ ##????# #??## #???????????????# ??? | | ??## #????# #???# ####???????????? ??? | | ??# ### #?# ##### ####????????? ??? | | ?## ##?## ## # #????????? ???? | | ?# #???# ##?????????????? | | # ###### ### ##### #?????????????? | | # #??# ##?# #???# #?????????????? | | ## ## #???###?## #???## ##?????????????? | | ?## #?# #??????## ###### ##??????????????? | | ??###??# #??????# % # # ###???????????????? | | ??????## #????### a # ##???????????????? | | ?????## ###### a% # # #???????????????? | | ?????# ## aa # ## #???????????????# | | ?????# # # # ######??????????# | | ?????# # a %### ##?#######?# | | ?????# " ## # %% % ### ### | | ?????## ## ######### @ % a | | ??????########?????# # | | ?????????????######## ### | | ?????????????# ## # # ## % ## #?? | | ?????????????# ###### ### ? | | ?????????????# ####???# ######?# ### | | ?????????????# """ #??????# ##??????# #?? | | ?????????????# """ #??????# ##???????# ?? | | ?????????????# """ #??????## "%" #????????# #?? | | ?????????????########???????## " #???????? #?? | | ?????????????????????????????# #????????##??? | | ?????????????????????????????# ????????????? | | ?????????????????????????????# ###???????????? | | ?????????????????????????????#######?????????????? | | ?????????????????????????????????????????????????? | | ?????????????????????????????????????????????????? | | ?????????????????????????????????????????????????? | | ?????????????????????????????????????????????????? | | ?????????????????????????????????????????????????? | | ?????????????????????????????????????????????????? | | ?????????????????????????????????????????????????? | | ?????????????????????????????????????????????????? | | ?????????????????????????????????????????????????? | | ?????????????????????????????????????????????????? | | ?????????????????????????????????????????????????? | +----------------------------------------------------+ Best States ------------- Heat Dissipation 47 Energy Generation 14 Energy Capacity 280 Matter Stores 300 Matter Capacity 300 Sight Range 16 Terrain Scan Density 10 Evasion (%) 55 Targeting Accuracy 6 Item Schematics ----------------- None Robot Schematics ------------------ None Fabricated ------------ Nothing Repaired ---------- Nothing Alien Tech Used ----------------- None Achievements -------------- None Challenges ------------ None Cogshop Purchases (10) ------------------------ Hvy. Ion Engine (699) Imp. Medium Laser (699) Imp. Medium Laser (699) Cooling System (699) Imp. Aluminum Leg (699) Imp. Aluminum Leg (699) Imp. Targeting Computer (699) Aerolev Unit (Loot Box) Hcp. Matter Pod (Loot Box) Med. Armor Plating (Loot Box) Game ------ Seed DataMachineInterpreter Manual? 0 Play Time 00:07:38 Cumulative 1111.0 hours Start 2025.06.15 @ 16:04:24 End 2025.06.15 @ 16:12:52 Sessions 1 Manual Loads 0 Difficulty Rogue Special Mode AFD2019/Pay2Buy Game No. 1367 Rogue 1083 Adventurer 124 Explorer 160 Win Type - Total 50 Types 36/0/8/4/1/0/0/1/0/0 Lore% 92 Gallery% 87 Achievement% 81 Wizard Run 0 Options --------- Layout 0 ASCII 0 Keyboard 1 Movement Numpad Keybinds 0 Fullscreen 2 Font 18/X11 Map View 76x50 Zoom Use 0% Tactical HUD 1 Map Filters NONE Filters NONE Steam 1 RUN: 0d2cf748-cf66-4b1f-8937-9454aeb2fe45